bitfinex-derivatives/quotes_BTCF0:USTF0_20250719
["timestamp","ask_amount","ask_price","bid_price","bid_amount"]
[1752925924554,0.07399572,118430.0,118420.0,1.51587854]
[1752925924760,0.24377942,118430.0,118420.0,1.2619584]
[1752925924950,0.24377942,118430.0,118420.0,1.51587854]
[1752925925256,0.24477942,118430.0,118420.0,1.87667854]
[1752925925457,0.07599572,118430.0,118420.0,1.87667854]
[1752925926568,0.28737572,118430.0,118420.0,1.87667854]
[1752925928759,0.27174572,118430.0,118420.0,1.87667854]
[1752925929964,0.27174572,118430.0,118420.0,1.6227584]
[1752925930460,0.27174572,118430.0,118420.0,1.87667854]
[1752925932165,0.27174572,118430.0,118420.0,1.86141437]
[1752925934568,0.27174572,118430.0,118420.0,2.15661437]
[1752925934767,0.28737572,118430.0,118420.0,2.15661437]
[1752925934967,0.45615942,118430.0,118420.0,2.15661437]
[1752925936569,0.45615942,118430.0,118420.0,2.15476437]
[1752925940270,0.58311949,118430.0,118420.0,2.15476437]
[1752925941072,0.45615942,118430.0,118420.0,2.15476437]
[1752925941370,0.58311949,118430.0,118420.0,2.15476437]
[1752925942175,0.58311949,118430.0,118420.0,2.10922804]
[1752925942472,0.58311949,118430.0,118420.0,2.17002854]
[1752925942777,0.58311949,118430.0,118420.0,2.10922804]
[1752925943168,0.58311949,118430.0,118420.0,2.17002854]
[1752925944175,0.45615942,118430.0,118420.0,2.17002854]
[1752925944876,0.45615942,118430.0,118420.0,2.17187854]
[1752925945271,0.28737572,118430.0,118420.0,2.17187854]
[1752925946477,0.45615942,118430.0,118420.0,2.17187854]
[1752925946772,0.28737572,118430.0,118420.0,2.17187854]
[1752925947168,0.45615942,118430.0,118420.0,2.17187854]
[1752925948278,0.28737572,118430.0,118420.0,1.9179584]
[1752925948478,0.45615942,118430.0,118420.0,2.17002854]
[1752925948674,0.45615942,118430.0,118420.0,1.9161084]
[1752925948979,0.45615942,118430.0,118420.0,2.17002854]
[1752925949578,0.58311949,118430.0,118420.0,2.17002854]
[1752925952375,0.58311949,118430.0,118420.0,2.04306847]
[1752925956287,0.58311949,118430.0,118420.0,2.17002854]
[1752925957483,0.58311949,118430.0,118420.0,2.17284854]
[1752925960190,0.58311949,118430.0,118420.0,1.9189284]
[1752925960488,0.58311949,118430.0,118420.0,2.17284854]
[1752925961793,0.58311949,118430.0,118420.0,1.9189284]
[1752925961987,0.58311949,118430.0,118420.0,2.04588847]
[1752925962291,0.45615942,118430.0,118420.0,1.9189284]
[1752925962491,0.58311949,118430.0,118420.0,2.04588847]
[1752925962791,0.58311949,118430.0,118420.0,2.04306847]
[1752925963586,0.58311949,118430.0,118420.0,0.31068]
[1752925963791,0.72675051,118430.0,118420.0,0.92771626]
[1752925963986,0.72675051,118430.0,118420.0,1.09651426]
[1752925964191,0.72675051,118430.0,118420.0,0.80131426]
[1752925964992,1.09979044,118430.0,118420.0,0.80131426]
[1752925965392,1.09979044,118430.0,118420.0,0.755718]
[1752925965892,1.09979044,118430.0,118420.0,0.80131426]
[1752925966294,1.09979044,118430.0,118420.0,0.786878]
[1752925966791,0.97283037,118430.0,118420.0,0.786878]
[1752925966992,1.09979044,118430.0,118420.0,0.786878]
[1752925967387,1.09979044,118430.0,118420.0,0.83247426]
[1752925969993,0.97283037,118430.0,118420.0,0.83573426]
[1752925970199,1.09979044,118430.0,118420.0,0.96269433]
[1752925970496,0.97283037,118430.0,118420.0,0.96269433]
[1752925970690,1.09979044,118430.0,118420.0,1.37006433]
[1752925970889,1.08311949,118430.0,118420.0,1.37006433]
[1752925971195,0.95615942,118430.0,118420.0,1.4997244]
[1752925971886,0.45615942,118430.0,118420.0,1.4997244]
[1752925974591,0.44052942,118430.0,118420.0,1.4997244]
[1752925974794,0.42235942,118430.0,118420.0,1.4997244]
[1752925975987,0.42235942,118430.0,118420.0,1.7949244]
[1752925976192,0.42235942,118430.0,118420.0,1.74932814]
[1752925978600,0.42235942,118430.0,118420.0,1.495408]
[1752925978898,0.42235942,118430.0,118420.0,1.74932814]
[1752925979906,0.45840942,118430.0,118420.0,1.74932814]
[1752925980896,0.45840942,118430.0,118420.0,1.495408]
[1752925981101,0.45840942,118430.0,118420.0,1.74932814]
[1752925982402,0.47506206,118430.0,118420.0,1.79486981]
[1752925985203,0.45840942,118430.0,118420.0,1.79486981]
[1752925985402,0.45840942,118430.0,118420.0,1.43406981]
[1752925985601,0.45840942,118430.0,118420.0,2.15566981]
[1752925986403,0.58536949,118430.0,118420.0,2.15566981]
[1752925986703,0.58536949,118430.0,118420.0,1.90174967]
[1752925986904,0.58536949,118430.0,118420.0,2.15566981]
[1752925987709,0.58536949,118430.0,118420.0,1.43406981]
[1752925987909,0.58536949,118430.0,118420.0,2.15566981]
[1752925988711,0.58536949,118430.0,118420.0,1.43406981]
[1752925988908,0.58536949,118430.0,118420.0,2.15566981]
[1752925990109,0.45840942,118430.0,118420.0,2.15566981]
[1752925990610,0.58536949,118430.0,118420.0,2.15566981]
[1752925991402,0.45840942,118430.0,118420.0,1.43406981]
[1752925991709,0.45840942,118430.0,118420.0,2.15566981]
[1752925992314,0.45840942,118430.0,118420.0,2.17092864]
[1752925993415,0.45840942,118430.0,118420.0,1.44932864]
[1752925993613,0.45840942,118430.0,118420.0,2.17092864]
[1752925994410,0.45840942,118430.0,118420.0,2.11012814]
[1752925994614,0.58536949,118430.0,118420.0,1.98046807]
[1752925994815,0.58536949,118430.0,118420.0,2.02601539]
[1752925995315,0.58536949,118430.0,118420.0,1.85096532]
[1752925995614,0.58536949,118430.0,118420.0,2.00138539]
[1752925995804,0.58536949,118430.0,118420.0,1.87442532]
[1752925996010,1.08536949,118430.0,118420.0,2.02454539]
[1752925996213,0.95840942,118430.0,118420.0,2.02454539]
[1752925996414,1.08536949,118430.0,118420.0,2.02454539]
[1752925999620,1.08536949,118430.0,118420.0,1.72934539]
[1752926000316,0.95840942,118430.0,118420.0,1.72934539]
[1752926000519,0.95840942,118430.0,118420.0,1.81332814]
[1752926000721,1.08536949,118430.0,118420.0,1.81332814]
[1752926001820,1.08536949,118430.0,118420.0,1.559408]
[1752926002323,1.08536949,118430.0,118420.0,1.74716857]
[1752926003018,0.95840942,118430.0,118420.0,1.74716857]
[1752926003221,1.08536949,118430.0,118420.0,1.74716857]
[1752926003522,1.08536949,118430.0,118420.0,1.87412864]
[1752926003922,1.08536949,118430.0,118420.0,1.74716857]
[1752926004423,1.08536949,118430.0,118420.0,1.74459857]
[1752926004623,1.08536949,118430.0,118420.0,1.38636857]
[1752926008526,1.08536949,118430.0,118420.0,1.51332864]
[1752926009027,1.08536949,118430.0,118420.0,1.45252814]
[1752926009528,1.08536949,118430.0,118420.0,1.32556807]
[1752926010732,1.08536949,118430.0,118420.0,1.45252814]
[1752926011332,0.95840942,118430.0,118420.0,1.45252814]
[1752926011533,1.08536949,118430.0,118420.0,1.45252814]
[1752926012537,1.08536949,118430.0,118420.0,1.51332864]
[1752926014030,1.06916949,118430.0,118420.0,1.51332864]
[1752926014232,0.95764942,118430.0,118420.0,1.45252814]
[1752926014535,0.95764942,118430.0,118420.0,1.51332864]
[1752926014835,1.08460949,118430.0,118420.0,1.51332864]
[1752926015037,0.58460949,118430.0,118420.0,1.51332864]
[1752926015436,0.58460949,118430.0,118420.0,1.38636857]
[1752926015635,0.58460949,118430.0,118420.0,1.38379857]
[1752926017436,0.58460949,118430.0,118420.0,1.67899857]
[1752926017638,0.45764942,118430.0,118420.0,1.67899857]
[1752926017838,0.58460949,118430.0,118420.0,1.67899857]
[1752926022239,0.601278,118430.0,118420.0,1.66378684]
[1752926023842,0.601278,118430.0,118420.0,1.07838684]
[1752926024243,0.601278,118430.0,118420.0,1.66374684]
[1752926026646,0.601278,118430.0,118420.0,1.07838684]
[1752926026945,0.601278,118430.0,118420.0,1.66374684]
[1752926031448,0.601278,118430.0,118420.0,1.30294684]
[1752926031647,0.601278,118430.0,118420.0,1.66374684]
[1752926032251,0.58460949,118430.0,118420.0,1.67895857]
[1752926034343,0.58460949,118430.0,118420.0,1.31815857]
[1752926034549,0.58460949,118430.0,118420.0,1.67895857]
[1752926039852,0.58460949,118430.0,118420.0,0.9666385]
[1752926040151,0.60128086,118430.0,118420.0,0.54401851]
[1752926040357,0.60128086,118430.0,118420.0,1.12929851]
[1752926041056,0.60128086,118430.0,118420.0,0.83409851]
[1752926041958,0.47432079,118430.0,118420.0,0.83409851]
[1752926042152,0.45764942,118430.0,118420.0,1.32241807]
[1752926042558,0.58460949,118430.0,118420.0,1.32241807]
[1752926042857,0.58460949,118430.0,118420.0,1.44937814]
[1752926043359,0.58460949,118430.0,118420.0,1.32241807]
[1752926047757,0.58460949,118430.0,118420.0,1.195458]
[1752926048060,0.58460949,118430.0,118420.0,1.32241807]
[1752926054961,0.58460949,118430.0,118420.0,1.195458]
[1752926055262,0.58460949,118430.0,118420.0,1.32241807]
[1752926059268,0.58460949,118430.0,118420.0,1.195458]
[1752926059460,0.58460949,118430.0,118420.0,1.32241807]
[1752926059765,0.58460949,118430.0,118420.0,0.96161807]
[1752926059964,0.58460949,118430.0,118420.0,1.32241807]
[1752926062567,0.58460949,118430.0,118420.0,1.195458]
[1752926062762,0.45764942,118430.0,118420.0,1.32241807]
[1752926063062,0.58460949,118430.0,118420.0,1.32241807]
[1752926064265,0.45764942,118430.0,118420.0,1.32241807]
[1752926064466,0.58460949,118430.0,118420.0,1.32241807]
[1752926065669,0.58460949,118430.0,118420.0,1.195458]
[1752926065870,0.58460949,118430.0,118420.0,1.32241807]
[1752926068169,0.58460949,118430.0,118420.0,1.38321857]
[1752926069272,0.60129717,118430.0,118420.0,1.38321857]
[1752926070274,0.60129717,118430.0,118420.0,1.32241807]
[1752926071274,0.60129717,118430.0,118420.0,1.195458]
[1752926071478,0.60129717,118430.0,118420.0,1.32241807]
[1752926071782,0.60129717,118430.0,118420.0,0.96161807]
[1752926072076,0.60129717,118430.0,118420.0,1.32241807]
[1752926072274,0.60129717,118430.0,118420.0,1.3680223]
[1752926072879,0.60129717,118430.0,118420.0,1.0072223]
[1752926073077,0.60129717,118430.0,118420.0,1.3680223]
[1752926073273,0.4743371,118430.0,118420.0,1.3680223]
[1752926073571,0.60129717,118430.0,118420.0,1.3698823]
[1752926074981,0.60129717,118430.0,118420.0,1.24292223]
[1752926075180,0.60129717,118430.0,118420.0,1.3698823]
[1752926076478,0.60129717,118430.0,118420.0,1.24292223]
[1752926076679,0.60129717,118430.0,118420.0,1.3698823]
[1752926078983,0.4743371,118430.0,118420.0,1.3698823]
[1752926079185,0.60129717,118430.0,118420.0,1.3698823]
[1752926082787,0.60129717,118430.0,118420.0,1.197318]
[1752926082988,0.60129717,118430.0,118420.0,1.32427807]
[1752926083687,0.60129717,118430.0,118420.0,1.38507857]
[1752926086487,0.60129717,118430.0,118420.0,1.38321857]
[1752926086782,0.60129717,118430.0,118420.0,1.32241807]
[1752926087284,0.60129717,118430.0,118420.0,1.38321857]
[1752926091990,0.60129717,118430.0,118420.0,1.02241857]
[1752926092290,0.60129717,118430.0,118420.0,1.38321857]
[1752926092491,0.60129717,118430.0,118420.0,1.32241807]
[1752926093293,0.60129717,118430.0,118420.0,1.38321857]
[1752926094594,0.61866316,118430.0,118420.0,1.38321857]
[1752926094894,0.61866316,118430.0,118420.0,1.02241857]
[1752926095096,0.61866316,118430.0,118420.0,1.38321857]
[1752926095697,0.61866316,118430.0,118420.0,1.02241857]
[1752926095896,0.61866316,118430.0,118420.0,1.38321857]
[1752926101604,0.61866316,118430.0,118420.0,1.38507857]
[1752926101900,0.61866316,118430.0,118420.0,1.2581185]
[1752926102202,0.61866316,118430.0,118420.0,1.38507857]
[1752926103103,0.61866316,118430.0,118420.0,1.2581185]
[1752926103404,0.61866316,118430.0,118420.0,1.38507857]
[1752926104003,0.61866316,118430.0,118420.0,1.2581185]
[1752926104200,0.61866316,118430.0,118420.0,1.38321857]
[1752926104404,0.61866316,118430.0,118420.0,1.0874605]
[1752926104706,0.61866316,118430.0,118420.0,0.85362057]
[1752926105207,0.61866316,118430.0,118420.0,0.71146084]
[1752926105402,0.61866316,118430.0,118420.0,0.66586]
[1752926105905,0.61866316,118430.0,118420.0,0.834658]
[1752926106101,0.74562323,118430.0,118420.0,0.66530084]
[1752926107008,1.24562323,118430.0,118420.0,0.04560084]
[1752926107210,1.60642323,118430.0,118420.0,0.04560084]
[1752926107907,1.60642323,118430.0,118420.0,0.02364398]
[1752926108504,0.257148,118420.0,118410.0,0.58452]
[1752926108705,0.52775582,118420.0,118410.0,0.58452]
[1752926109410,0.88855582,118420.0,118410.0,0.58452]
[1752926109606,0.88855582,118420.0,118410.0,0.60051]
[1752926110110,0.63463568,118420.0,118410.0,0.61628]
[1752926110306,1.09993582,118420.0,118410.0,0.61628]
[1752926110704,1.59993582,118420.0,118410.0,0.61628]
[1752926110900,1.34601568,118420.0,118410.0,0.61628]
[1752926111105,1.59993582,118420.0,118410.0,0.61628]
[1752926112513,1.60193582,118420.0,118410.0,0.61628]
[1752926112813,1.60186696,118420.0,118410.0,0.61628]
[1752926117821,0.98714682,118420.0,118410.0,0.96038227]
[1752926118228,0.97190682,118420.0,118410.0,1.44978234]
[1752926118514,0.882178,118420.0,118410.0,1.44978234]
[1752926118819,0.382178,118420.0,118410.0,1.32282227]
[1752926121323,0.382178,118420.0,118410.0,1.1958622]
[1752926121626,0.382178,118420.0,118410.0,1.32282227]
[1752926122224,0.388708,118420.0,118410.0,1.32282227]
[1752926122525,0.413678,118420.0,118410.0,1.32282227]
[1752926123229,0.413678,118420.0,118410.0,1.1958622]
[1752926123526,0.413678,118420.0,118410.0,1.32282227]
[1752926123825,0.436248,118420.0,118410.0,1.32282227]
[1752926125930,0.436248,118420.0,118410.0,1.1958622]
[1752926126227,0.436248,118420.0,118410.0,1.32282227]
[1752926127230,0.56320807,118420.0,118410.0,1.32282227]
[1752926127931,0.56320807,118420.0,118410.0,1.36832113]
[1752926130337,0.436248,118420.0,118410.0,1.24136106]
[1752926130636,0.436248,118420.0,118410.0,1.36832113]
[1752926130936,0.436248,118420.0,118410.0,1.72912113]
[1752926131838,0.436248,118420.0,118410.0,1.14464113]
[1752926132239,0.436248,118420.0,118410.0,1.72900113]
[1752926132439,0.436248,118420.0,118410.0,1.60204106]
[1752926132640,0.56320807,118420.0,118410.0,1.72900113]
[1752926134742,0.56320807,118420.0,118410.0,1.72896113]
[1752926135743,0.56320807,118420.0,118410.0,1.30256113]
[1752926135943,0.436248,118420.0,118410.0,2.02416113]
[1752926136344,0.436248,118420.0,118410.0,1.43984113]
[1752926136545,0.436248,118420.0,118410.0,2.02416113]
[1752926136944,0.56320807,118420.0,118410.0,2.02416113]
[1752926137147,0.382178,118420.0,118410.0,2.02416113]
[1752926137445,0.21338,118420.0,118410.0,2.1511212]
[1752926137647,0.382178,118420.0,118410.0,2.1511212]
[1752926137847,0.21338,118420.0,118410.0,1.81042234]
[1752926138047,0.382178,118420.0,118410.0,1.81042234]
[1752926138547,0.382178,118420.0,118410.0,1.87122284]
[1752926142456,0.382178,118420.0,118410.0,1.28690284]
[1752926142647,0.382178,118420.0,118410.0,1.87118284]
[1752926142843,0.382178,118420.0,118410.0,1.74422277]
[1752926144155,0.382178,118420.0,118410.0,1.6172627]
[1752926144356,0.433958,118420.0,118410.0,1.6172627]
[1752926144654,0.433958,118420.0,118410.0,1.38342277]
[1752926144955,0.59545807,118420.0,118410.0,1.38342277]
[1752926145150,0.468498,118420.0,118410.0,1.38342277]
[1752926146750,0.59545807,118420.0,118410.0,1.2564627]
[1752926146954,0.59545807,118420.0,118410.0,1.32098227]
[1752926147454,0.59545807,118420.0,118410.0,1.61618227]
[1752926147849,0.468498,118420.0,118410.0,1.61618227]
[1752926148045,0.59545807,118420.0,118410.0,1.61618227]
[1752926148247,0.468498,118420.0,118410.0,1.61618227]
[1752926148647,0.468498,118420.0,118410.0,1.61770227]
[1752926148850,0.59545807,118420.0,118410.0,1.61770227]
[1752926149248,0.72241814,118420.0,118410.0,0.73613]
[1752926149551,0.72241814,118420.0,118410.0,0.9746605]
[1752926149851,0.72241814,118420.0,118410.0,0.87944]
[1752926149852,0.468498,118420.0,118410.0,0.87944]
[1752926150055,0.72241814,118420.0,118410.0,0.87944]
[1752926150351,0.829298,118420.0,118410.0,0.34075721]
[1752926150558,1.599857,118420.0,118410.0,0.92579721]
[1752926151053,1.599857,118420.0,118410.0,0.88024]
[1752926152355,1.34593686,118420.0,118410.0,0.88024]
[1752926152549,1.599857,118420.0,118410.0,0.88024]
[1752926153558,1.599857,118420.0,118410.0,0.58504]
[1752926154151,0.2551321,118410.0,118400.0,0.06940773]
[1752926154359,0.50905224,118410.0,118400.0,0.63927773]
[1752926154557,0.52618976,118410.0,118400.0,0.63927773]
[1752926155257,1.09836976,118410.0,118400.0,0.63927773]
[1752926155453,1.09836976,118410.0,118400.0,0.59372052]
[1752926156261,0.2551464,118400.0,118390.0,0.43743721]
[1752926156464,0.50906654,118400.0,118390.0,0.66215721]
[1752926156659,0.50906654,118400.0,118390.0,0.63107721]
[1752926157060,0.4247064,118400.0,118390.0,0.63107721]
[1752926157663,0.4247064,118400.0,118390.0,0.6403314]
[1752926157957,0.2551464,118400.0,118390.0,0.6403314]
[1752926158163,0.2551464,118400.0,118390.0,0.59477419]
[1752926158164,0.4247064,118400.0,118390.0,0.59477419]
[1752926158359,0.4247064,118400.0,118390.0,0.59577419]
[1752926159058,0.9247064,118400.0,118390.0,0.59577419]
[1752926160167,1.1360864,118400.0,118390.0,0.59577419]
[1752926161359,1.3056464,118400.0,118390.0,0.01025419]
[1752926161557,1.1360864,118400.0,118390.0,0.01025419]
[1752926161758,1.4968864,118400.0,118390.0,0.01025419]
[1752926162059,1.3273264,118400.0,118390.0,0.01025419]
[1752926162357,1.34392447,118400.0,118390.0,0.02526419]
[1752926162556,1.51348447,118400.0,118390.0,0.04041419]
[1752926166965,2.10700447,118400.0,118390.0,0.04041419]
[1752926169665,1.93744447,118400.0,118390.0,0.04041419]
[1752926170063,2.10700447,118400.0,118390.0,0.04041419]
[1752926170461,2.10700447,118400.0,118390.0,0.02526419]
[1752926170668,2.10700447,118400.0,118390.0,0.01025419]
[1752926171572,1.93744447,118400.0,118390.0,0.01025419]
[1752926171764,2.10700447,118400.0,118390.0,0.01025419]
[1752926172267,2.0904064,118400.0,118390.0,0.01025419]
[1752926176278,2.10700533,118400.0,118390.0,0.01025419]
[1752926176777,1.93744533,118400.0,118390.0,0.01025419]
[1752926176978,2.10700533,118400.0,118390.0,0.01025419]
[1752926179076,2.19178357,118400.0,118390.0,0.01025419]
[1752926181777,0.98312533,118400.0,118390.0,0.53036331]
[1752926182073,0.98312533,118400.0,118390.0,0.74689401]
[1752926182377,0.61029445,118400.0,118390.0,0.74689401]
[1752926183080,0.61029445,118400.0,118390.0,0.61972489]
[1752926183270,0.73746357,118400.0,118390.0,0.74689401]
[1752926183468,0.48312533,118400.0,118390.0,0.74689401]
[1752926183670,0.73746357,118400.0,118390.0,0.74689401]
[1752926184081,0.61029445,118400.0,118390.0,0.74689401]
[1752926185181,0.65265916,118400.0,118390.0,0.61972489]
[1752926185984,0.65265916,118400.0,118390.0,0.25892489]
[1752926186187,0.48312533,118400.0,118390.0,0.61972489]
[1752926187292,0.48312533,118400.0,118390.0,0.78925872]
[1752926187488,0.48312533,118400.0,118390.0,0.83481593]
[1752926188591,0.48312533,118400.0,118390.0,0.6652821]
[1752926188791,0.48312533,118400.0,118390.0,0.83481593]
[1752926189193,0.48312533,118400.0,118390.0,0.83605593]
[1752926189589,0.46773533,118400.0,118390.0,0.83605593]
[1752926189790,0.3802064,118400.0,118390.0,0.79049872]
[1752926190288,0.4097164,118400.0,118390.0,0.79049872]
[1752926190494,0.4335364,118400.0,118390.0,0.79049872]
[1752926191188,0.26471,118400.0,118390.0,0.79049872]
[1752926191492,0.21138,118400.0,118390.0,0.79049872]
[1752926191993,0.21138,118400.0,118390.0,1.08569872]
[1752926192185,0.21138,118400.0,118390.0,1.1312467]
[1752926192494,0.21138,118400.0,118390.0,1.08569872]
[1752926193893,0.21138,118400.0,118390.0,1.14649922]
[1752926194187,0.21138,118400.0,118390.0,1.08569872]
[1752926195094,0.21138,118400.0,118390.0,1.14649922]
[1752926197188,0.21138,118400.0,118390.0,1.08569872]
[1752926202395,0.21138,118400.0,118390.0,1.14649922]
[1752926202697,0.23444,118400.0,118390.0,1.14649922]
[1752926202897,0.26505,118400.0,118390.0,1.14649922]
[1752926204897,0.26505,118400.0,118390.0,1.73741922]
[1752926205296,0.26505,118400.0,118390.0,1.56788539]
[1752926205495,0.4338765,118400.0,118390.0,1.73741922]
[1752926205797,0.4338765,118400.0,118390.0,1.67661872]
[1752926206199,0.4529165,118400.0,118390.0,1.67661872]
[1752926206401,0.4683965,118400.0,118390.0,1.67661872]
[1752926206797,0.4683965,118400.0,118390.0,1.72210562]
[1752926206998,0.4683965,118400.0,118390.0,1.13118562]
[1752926207198,0.4683965,118400.0,118390.0,1.72322562]
[1752926207698,0.29957,118400.0,118390.0,1.67773872]
[1752926209398,0.29957,118400.0,118390.0,1.50820489]
[1752926209701,0.4683965,118400.0,118390.0,1.67773872]
[1752926210202,0.4683965,118400.0,118390.0,1.73805922]
[1752926210501,0.4683965,118400.0,118390.0,1.14649922]
[1752926210801,0.4683965,118400.0,118390.0,1.73841922]
[1752926212402,0.4683965,118400.0,118390.0,1.72313508]
[1752926213901,0.4683965,118400.0,118390.0,1.72189508]
[1752926215304,0.4683965,118400.0,118390.0,1.67637872]
[1752926215805,0.4683965,118400.0,118390.0,1.67569872]
[1752926216404,0.4683965,118400.0,118390.0,1.08445872]
[1752926216608,0.4683965,118400.0,118390.0,1.67537872]
[1752926217799,0.4683965,118400.0,118390.0,1.67437872]
[1752926218001,0.4683965,118400.0,118390.0,1.08345872]
[1752926218195,0.4683965,118400.0,118390.0,1.67309872]
[1752926218901,0.4683965,118400.0,118390.0,1.73389922]
[1752926219805,0.4683965,118400.0,118390.0,1.73497922]
[1752926220204,0.4683965,118400.0,118390.0,1.73461922]
[1752926220505,0.4683965,118400.0,118390.0,1.73353922]
[1752926223002,0.29957,118400.0,118390.0,1.73353922]
[1752926223211,0.29957,118400.0,118390.0,1.73440922]
[1752926223510,0.29957,118400.0,118390.0,1.73412922]
[1752926224911,0.4683965,118400.0,118390.0,1.73412922]
[1752926225110,0.29957,118400.0,118390.0,1.73412922]
[1752926228622,0.29957,118400.0,118390.0,1.67332872]
[1752926228806,0.26505,118400.0,118390.0,1.67332872]
[1752926229118,0.26505,118400.0,118390.0,1.75800185]
[1752926229711,0.26505,118400.0,118390.0,1.81879598]
[1752926230216,0.26505,118400.0,118390.0,1.56458902]
[1752926230417,0.26505,118400.0,118390.0,1.81879598]
[1752926231116,0.21138,118400.0,118390.0,1.81879598]
[1752926232518,0.21138,118400.0,118390.0,2.18879598]
[1752926232711,0.21138,118400.0,118390.0,1.52359598]
[1752926235712,0.21138,118400.0,118390.0,1.53880247]
[1752926237020,0.21138,118400.0,118390.0,1.87880247]
[1752926238518,0.21138,118400.0,118390.0,1.53880247]
[1752926243927,0.21138,118400.0,118390.0,1.55880247]
[1752926248228,0.21703,118400.0,118390.0,1.55880247]
[1752926249326,0.23972,118400.0,118390.0,1.55880247]
[1752926252333,0.23972,118400.0,118390.0,1.54356934]
[1752926252627,0.23972,118400.0,118390.0,1.28936238]
[1752926252830,0.23972,118400.0,118390.0,1.54356934]
[1752926253233,0.26259,118400.0,118390.0,1.54356934]
[1752926253633,0.26259,118400.0,118390.0,1.54212934]
[1752926254941,0.26259,118400.0,118390.0,1.90292934]
[1752926258742,0.27885,118400.0,118390.0,1.90292934]
[1752926259530,0.27885,118400.0,118390.0,1.88292934]
[1752926262338,0.27885,118400.0,118390.0,1.82216185]
[1752926262543,0.27885,118400.0,118390.0,1.89816247]
[1752926268140,0.4654065,118400.0,118390.0,1.89816247]
[1752926268345,0.29658,118400.0,118390.0,1.89816247]
[1752926268743,0.29658,118400.0,118390.0,1.30873247]
[1752926268944,0.59250998,118400.0,118390.0,1.72109899]
[1752926269144,0.4654065,118400.0,118390.0,1.64509837]
[1752926269746,0.4654065,118400.0,118390.0,1.66898837]
[1752926270048,0.4654065,118400.0,118390.0,1.69214837]
[1752926270250,0.4654065,118400.0,118390.0,1.75295036]
[1752926276960,0.4654065,118400.0,118390.0,1.03135036]
[1752926277163,0.4654065,118400.0,118390.0,1.77151742]
[1752926277961,0.29658,118400.0,118390.0,1.77151742]
[1752926278261,0.4654065,118400.0,118390.0,1.77151742]
[1752926278865,0.29658,118400.0,118390.0,1.77151742]
[1752926279466,0.29658,118400.0,118390.0,1.8986209]
[1752926280463,0.29658,118400.0,118390.0,1.77151742]
[1752926280663,0.29658,118400.0,118390.0,1.8986209]
[1752926283362,0.29658,118400.0,118390.0,0.5898609]
[1752926283567,0.29658,118400.0,118390.0,1.8977809]
[1752926285667,0.4654065,118400.0,118390.0,1.8977809]
[1752926285869,0.4654065,118400.0,118390.0,1.77067742]
[1752926286570,0.59250998,118400.0,118390.0,1.77067742]
[1752926286769,0.59250998,118400.0,118390.0,1.74751742]
[1752926287666,0.59250998,118400.0,118390.0,1.62041394]
[1752926287867,0.59250998,118400.0,118390.0,1.74751742]
[1752926288366,0.71961346,118400.0,118390.0,0.42985618]
[1752926288572,0.71961346,118400.0,118390.0,0.65549618]
[1752926288871,0.73613782,118400.0,118390.0,0.64027984]
[1752926289170,0.73613782,118400.0,118390.0,0.80912054]
[1752926289367,0.48193086,118400.0,118390.0,0.93622402]
[1752926289565,0.73613782,118400.0,118390.0,0.93622402]
[1752926289769,0.60903434,118400.0,118390.0,0.93622402]
[1752926290069,1.10903434,118400.0,118390.0,1.29702402]
[1752926290263,1.10918846,118400.0,118390.0,1.29702402]
[1752926291270,1.15841339,118400.0,118390.0,1.29702402]
[1752926291871,1.17508961,118400.0,118390.0,1.29702402]
[1752926292270,1.17508961,118400.0,118390.0,1.25143837]
[1752926292469,1.15841339,118400.0,118390.0,1.29702402]
[1752926294076,1.03130991,118400.0,118390.0,1.29702402]
[1752926294272,1.15841339,118400.0,118390.0,1.29702402]
[1752926297183,0.9654065,118400.0,118390.0,1.29793837]
[1752926297382,0.9654065,118400.0,118390.0,1.34397402]
[1752926297679,0.9654065,118400.0,118390.0,1.34352402]
[1752926297880,0.4654065,118400.0,118390.0,1.34352402]
[1752926298475,0.59250998,118400.0,118390.0,1.34352402]
[1752926300483,0.4654065,118400.0,118390.0,1.34352402]
[1752926301584,0.59250998,118400.0,118390.0,1.34352402]
[1752926302382,0.60917889,118400.0,118390.0,1.29793837]
[1752926303493,0.60917889,118400.0,118390.0,1.27518837]
[1752926306290,0.60917889,118400.0,118390.0,0.72075837]
[1752926306488,0.60917889,118400.0,118390.0,0.92248837]
[1752926307890,0.48207541,118400.0,118390.0,0.79538489]
[1752926308395,0.60917889,118400.0,118390.0,0.92248837]
[1752926308595,0.48207541,118400.0,118390.0,0.92248837]
[1752926308791,0.60917889,118400.0,118390.0,0.92248837]
[1752926310591,0.60917889,118400.0,118390.0,1.28328837]
[1752926310796,0.60917889,118400.0,118390.0,1.30703837]
[1752926311198,0.60917889,118400.0,118390.0,1.32978837]
[1752926313198,0.48207541,118400.0,118390.0,1.32978837]
[1752926313399,0.60918725,118400.0,118390.0,1.32978837]
[1752926314200,0.60918725,118400.0,118390.0,1.37537402]
[1752926317198,0.48208377,118400.0,118390.0,1.37537402]
[1752926317399,0.60918725,118400.0,118390.0,1.37537402]
[1752926319709,0.48208377,118400.0,118390.0,1.37537402]
[1752926320013,0.60918725,118400.0,118390.0,1.37537402]
[1752926323117,0.48208377,118400.0,118390.0,1.37537402]
[1752926323416,0.60918725,118400.0,118390.0,1.24827054]
[1752926323617,0.60918725,118400.0,118390.0,1.37537402]
[1752926325017,0.60918725,118400.0,118390.0,1.67057402]
[1752926325418,0.48208377,118400.0,118390.0,1.67057402]
[1752926325717,0.60918725,118400.0,118390.0,1.67057402]
[1752926326120,0.60918725,118400.0,118390.0,1.54347054]
[1752926326318,0.60918725,118400.0,118390.0,1.67057402]
[1752926328711,0.60918725,118400.0,118390.0,1.54347054]
[1752926328920,0.60918725,118400.0,118390.0,1.67057402]
[1752926333724,0.60918725,118400.0,118390.0,1.30977402]
[1752926334024,0.60918725,118400.0,118390.0,1.67057402]
[1752926334519,0.60918725,118400.0,118390.0,1.54347054]
[1752926334719,0.60918725,118400.0,118390.0,1.67057402]
[1752926338927,0.60918725,118400.0,118390.0,1.30977402]
[1752926339126,0.60918725,118400.0,118390.0,1.67057402]
[1752926339828,0.60918725,118400.0,118390.0,1.30977402]
[1752926340030,0.60918725,118400.0,118390.0,1.67057402]
[1752926341928,0.48208377,118400.0,118390.0,1.67057402]
[1752926342330,0.60918725,118400.0,118390.0,1.67061402]
[1752926342626,0.39688367,118400.0,118390.0,1.7977175]
[1752926342930,0.22805727,118400.0,118390.0,1.75213185]
[1752926343124,0.22805727,118400.0,118390.0,1.79773468]
[1752926343330,0.39688367,118400.0,118390.0,1.75213185]
[1752926343732,0.39688367,118400.0,118390.0,1.81293384]
[1752926344232,0.3802064,118400.0,118390.0,1.75213185]
[1752926346835,0.3802064,118400.0,118390.0,1.81293384]
[1752926347834,0.21138,118400.0,118390.0,1.81293384]
[1752926348934,0.3802064,118400.0,118390.0,1.81293384]
[1752926349629,0.21138,118400.0,118390.0,1.81293384]
[1752926352537,0.21138,118400.0,118390.0,1.79768493]
[1752926352939,0.21138,118400.0,118390.0,2.15848493]